bitfinex-derivatives/quotes_BTCF0:USTF0_20251219
["timestamp","ask_amount","ask_price","bid_price","bid_amount"]
[1766152016432,0.00017023,88143.0,88132.0,0.0113528]
[1766152016637,0.00572,88142.0,88129.0,0.0113531]
[1766152017428,0.00572,88142.0,88126.0,0.00017023]
[1766152017933,0.00572,88142.0,88129.0,0.0113531]
[1766152018240,0.00572,88142.0,88127.0,0.0113534]
[1766152018438,0.0113527,88133.0,88117.0,0.00572]
[1766152018641,0.0113527,88133.0,88103.0,0.0113565]
[1766152018642,0.22689939,88130.0,88103.0,0.0113565]
[1766152018937,0.22689939,88130.0,88100.0,0.0113569]
[1766152019234,0.02426415,88129.0,88103.0,0.0113565]
[1766152019431,0.011354,88123.0,88103.0,0.0113565]
[1766152019632,0.00589023,88122.0,88107.0,0.011356]
[1766152020228,0.00589023,88122.0,88104.0,0.00017023]
[1766152020538,0.00589023,88122.0,88111.0,0.0113555]
[1766152020743,0.00589023,88122.0,88104.0,0.00017023]
[1766152021128,0.00589023,88122.0,88107.0,0.0113559]
[1766152022240,0.00589023,88122.0,88109.0,0.0113557]
[1766152022538,0.00017023,88122.0,88104.0,0.00017023]
[1766152022838,0.00017023,88122.0,88110.0,0.0113556]
[1766152024229,0.00017023,88122.0,88104.0,0.00017023]
[1766152025240,0.00017023,88122.0,88109.0,0.0113557]
[1766152025440,0.00017023,88122.0,88114.0,0.011355]
[1766152026441,0.00017023,88122.0,88116.0,0.0113548]
[1766152026831,0.00017023,88122.0,88113.0,0.0113552]
[1766152027943,0.00017023,88122.0,88108.0,0.0113558]
[1766152028140,0.00017023,88122.0,88104.0,0.01152653]
[1766152028339,0.00017023,88122.0,88104.0,0.00017023]
[1766152029237,0.00017023,88122.0,88106.0,0.0113561]
[1766152029431,0.0113542,88121.0,88106.0,0.0113561]
[1766152029636,0.00017023,88122.0,88106.0,0.0113561]
[1766152030543,0.00017023,88122.0,88104.0,0.00017023]
[1766152032348,0.00017023,88122.0,88107.0,0.0113559]
[1766152032648,0.00017023,88122.0,88109.0,0.0113557]
[1766152034753,0.00017023,88122.0,88104.0,0.00017023]
[1766152034954,0.00017023,88122.0,88112.0,0.0113554]
[1766152035446,0.00017023,88122.0,88116.0,0.0113548]
[1766152035651,2.3e-07,88123.0,88117.0,0.0113547]
[1766152036042,2.3e-07,88123.0,88114.0,0.011355]
[1766152036744,2.3e-07,88123.0,88116.0,0.0113548]
[1766152037153,2.3e-07,88123.0,88113.0,0.0113552]
[1766152037544,2.3e-07,88123.0,88110.0,0.0113555]
[1766152037761,0.0113545,88119.0,88104.0,0.01152663]
[1766152037946,0.0113542,88122.0,88106.0,0.0113561]
[1766152038251,0.0113544,88120.0,88106.0,0.0113561]
[1766152038450,0.0113544,88120.0,88098.0,0.00227021]
[1766152038451,0.0113557,88110.0,88098.0,0.00227021]
[1766152038653,0.0113553,88113.0,88099.0,0.0113571]
[1766152039151,0.00572,88114.0,88099.0,0.0113571]
[1766152039351,0.00572,88114.0,88101.0,0.0113567]
[1766152039540,0.00572,88114.0,88098.0,0.00227021]
[1766152040141,0.0170752,88114.0,88098.0,0.00227021]
[1766152040341,0.0113554,88112.0,88098.0,0.00227021]
[1766152042444,0.00572,88114.0,88071.0,0.06100058]
[1766152042445,0.0113581,88091.0,88071.0,0.06100058]
[1766152042655,0.24397769,88090.0,88070.0,0.0113607]
[1766152042848,0.00572,88089.0,88073.0,0.0113604]
[1766152043045,0.00572,88089.0,88070.0,0.0113608]
[1766152043546,0.00029801,88088.0,88072.0,0.0113605]
[1766152044055,0.00029801,88088.0,88063.0,0.0113616]
[1766152044259,0.22689939,88100.0,88061.0,0.00572]
[1766152044260,0.00192,88090.0,88083.0,0.011359]
[1766152044444,0.00096,88092.0,88080.0,0.0113594]
[1766152045264,0.00096,88092.0,88077.0,0.01153003]
[1766152045850,0.00096,88092.0,88077.0,0.00017023]
[1766152046152,0.0113581,88091.0,88077.0,0.00017023]
[1766152046958,0.00096,88092.0,88077.0,0.00017023]
[1766152047359,0.00096,88092.0,88077.0,0.01153013]
[1766152047855,0.00096,88092.0,88082.0,0.0113592]
[1766152048054,0.00017023,88095.0,88077.0,0.00017023]
[1766152048655,0.00108,88094.0,88084.0,0.0113589]
[1766152050152,0.00108,88094.0,88081.0,0.0113594]
[1766152050359,0.00108,88094.0,88079.0,0.0113596]
[1766152050655,0.00108,88094.0,88077.0,0.00017023]
[1766152051642,0.00108,88094.0,88082.0,0.0113592]
[1766152052046,0.00108,88094.0,88084.0,0.0113589]
[1766152052758,0.00108,88094.0,88081.0,0.0113594]
[1766152055158,0.00108,88094.0,88077.0,0.00017023]
[1766152057255,0.06088503,88125.0,88077.0,0.00017023]
[1766152057464,0.0113553,88113.0,88093.0,0.0113578]
[1766152057652,0.00572,88112.0,88093.0,0.0113578]
[1766152057851,0.0113555,88111.0,88093.0,0.0113578]
[1766152058253,0.0113555,88111.0,88095.0,0.0113575]
[1766152058645,0.0113555,88111.0,88094.0,0.00017023]
[1766152059457,0.0113555,88111.0,88094.0,0.01152793]
[1766152059655,0.0113562,88106.0,88094.0,0.00017023]
[1766152059850,0.0113565,88104.0,88094.0,0.00017023]
[1766152060446,0.00589023,88112.0,88094.0,0.00017023]
[1766152061260,0.0113559,88109.0,88094.0,0.00017023]
[1766152063460,0.01724573,88112.0,88096.0,0.0113574]
[1766152063659,0.02497965,88111.0,88094.0,0.00017023]
[1766152063863,0.00589023,88112.0,88094.0,0.00017023]
[1766152064253,0.00589023,88112.0,88099.0,0.011357]
[1766152064959,0.00589023,88112.0,88096.0,0.0113573]
[1766152066263,0.02499555,88111.0,88096.0,0.0113573]
[1766152066563,0.00589023,88112.0,88094.0,0.00017023]
[1766152066564,0.00017023,88112.0,88094.0,0.00017023]
[1766152066865,0.0113567,88102.0,88094.0,2.3e-07]
[1766152067060,0.011357,88100.0,88094.0,2.3e-07]
[1766152067250,0.00168,88102.0,88094.0,2.3e-07]
[1766152067656,0.011358,88092.0,88080.0,0.00216]
[1766152067859,0.0113577,88095.0,88080.0,0.00216]
[1766152068464,0.0113577,88095.0,88078.0,0.0113597]
[1766152068659,0.0113577,88095.0,88078.0,0.01152993]
[1766152069055,0.00168,88102.0,88078.0,0.00017023]
[1766152069256,0.02501928,88101.0,88078.0,0.00017023]
[1766152069459,0.0113582,88091.0,88078.0,0.00017023]
[1766152069768,0.00572,88090.0,88078.0,0.00017023]
[1766152070360,0.00572,88090.0,88074.0,0.00572]
[1766152070562,0.0113588,88086.0,88067.0,0.0113611]
[1766152070767,0.0113588,88086.0,88058.0,0.00227124]
[1766152070768,0.0113595,88080.0,88062.0,0.0113618]
[1766152071766,0.00572,88081.0,88061.0,0.00288]
[1766152071968,0.00572,88081.0,88065.0,0.0113613]
[1766152072176,0.00572,88081.0,88061.0,0.00288]
[1766152072470,0.00572,88081.0,88062.0,0.0113618]
[1766152073974,0.00572,88081.0,88065.0,0.0113614]
[1766152074966,0.00572,88081.0,88062.0,0.0113618]
[1766152075288,0.00572,88081.0,88061.0,0.00288]
[1766152075469,0.00572,88081.0,88065.0,0.0113614]
[1766152076667,0.00572,88081.0,88061.0,0.00288]
[1766152077968,0.0113596,88080.0,88061.0,0.00288]
[1766152078275,0.22716443,88071.0,88058.0,0.00227124]
[1766152078680,0.00589033,88073.0,88059.0,0.0113622]
[1766152079185,0.00589033,88073.0,88061.0,0.0113619]
[1766152079371,0.00589033,88073.0,88058.0,0.00227124]
[1766152079372,0.00589033,88073.0,88063.0,0.0113616]
[1766152079675,0.00589033,88073.0,88058.0,0.00227124]
[1766152080178,0.00589033,88073.0,88066.0,0.0113612]
[1766152080379,0.00589033,88073.0,88063.0,0.0113616]
[1766152081474,0.00589033,88073.0,88060.0,0.0113621]
[1766152082672,0.00589033,88073.0,88064.0,0.0113615]
[1766152082872,0.00589033,88073.0,88058.0,0.00227124]
[1766152083180,0.00589033,88073.0,88061.0,0.0113619]
[1766152083375,0.00589033,88073.0,88058.0,0.01363354]
[1766152083881,0.0113605,88072.0,88058.0,0.00227124]
[1766152084481,0.22716443,88070.0,88058.0,0.00227124]
[1766152084688,0.0113605,88072.0,88058.0,0.00227124]
[1766152084984,0.00589033,88073.0,88058.0,0.00227124]
[1766152085188,0.00572003,88073.0,88060.0,0.22716443]
[1766152085380,3e-08,88073.0,88071.0,0.0113606]
[1766152085882,3e-08,88073.0,88058.0,0.00227124]
[1766152086074,3e-08,88073.0,88058.0,0.01363354]
[1766152086484,0.22716443,88070.0,88058.0,0.00227124]
[1766152086683,3e-08,88073.0,88059.0,0.0113622]
[1766152086886,3e-08,88073.0,88058.0,1.24e-06]
[1766152087286,3e-08,88073.0,88059.0,0.0113622]
[1766152087488,3e-08,88073.0,88061.0,0.0113619]
[1766152087787,3e-08,88073.0,88058.0,1.24e-06]
[1766152088881,3e-08,88073.0,88061.0,0.0113619]
[1766152089083,3e-08,88073.0,88058.0,0.01136344]
[1766152089289,3e-08,88073.0,88060.0,0.011362]
[1766152090296,3e-08,88073.0,88058.0,1.24e-06]
[1766152090681,3e-08,88073.0,88061.0,0.0113619]
[1766152090980,3e-08,88073.0,88058.0,1.24e-06]
[1766152091289,3e-08,88073.0,88065.0,0.0113613]
[1766152091890,3e-08,88073.0,88067.0,0.0113612]
[1766152092092,3e-08,88073.0,88060.0,0.2271798]
[1766152092386,0.0113568,88102.0,88083.0,0.0113591]
[1766152092586,0.03105982,88101.0,88083.0,0.0113591]
[1766152092789,0.2328998,88100.0,88087.0,0.0113585]
[1766152093088,0.00572,88099.0,88085.0,0.0113588]
[1766152093485,0.00572,88099.0,88083.0,0.00017033]
[1766152093686,0.0170771,88099.0,88083.0,0.00017033]
[1766152095783,0.00572,88098.0,88083.0,0.00017033]
[1766152096684,0.0113583,88090.0,88060.0,0.2385418]
[1766152096894,0.00572,88089.0,88061.0,2.39188]
[1766152097493,0.00572,88089.0,88076.0,0.01136]
[1766152097688,0.00572,88089.0,88074.0,0.00017033]
[1766152097990,0.00572,88089.0,88075.0,0.0113601]
[1766152098190,0.00572,88089.0,88074.0,0.00017033]
[1766152098586,0.2271798,88084.0,88074.0,0.00017033]
[1766152098788,0.2271798,88084.0,88074.0,3.3e-07]
[1766152099292,0.00572,88089.0,88074.0,3.3e-07]
[1766152099792,0.011359,88084.0,88074.0,3.3e-07]
[1766152100994,0.00572,88083.0,88074.0,3.3e-07]
[1766152101695,0.0113593,88082.0,88074.0,3.3e-07]
[1766152101899,0.0113596,88080.0,88074.0,3.3e-07]
[1766152103097,0.00572,88083.0,88074.0,3.3e-07]
[1766152103894,0.0254861,88082.0,88074.0,3.3e-07]
[1766152104096,0.0254861,88081.0,88074.0,3.3e-07]
[1766152104298,0.0113594,88081.0,88074.0,3.3e-07]
[1766152104986,0.0170792,88083.0,88074.0,3.3e-07]
[1766152105185,0.0254859,88082.0,88074.0,3.3e-07]
[1766152105485,0.0368454,88081.0,88074.0,3.3e-07]
[1766152105686,0.0113595,88081.0,88074.0,3.3e-07]
[1766152105886,0.00572,88083.0,88074.0,3.3e-07]
[1766152106095,0.02548466,88082.0,88074.0,3.3e-07]
[1766152106394,0.00572,88083.0,88074.0,3.3e-07]
[1766152106594,0.03684439,88082.0,88074.0,3.3e-07]
[1766152106782,0.0113596,88080.0,88074.0,3.3e-07]
[1766152107394,0.00572,88083.0,88074.0,3.3e-07]
[1766152107603,0.0113598,88078.0,88074.0,3.3e-07]
[1766152107792,0.01136,88076.0,88074.0,3.3e-07]
[1766152108093,0.00572,88077.0,88074.0,3.3e-07]
[1766152109988,0.0227207,88074.0,88016.0,0.0113677]
[1766152110185,0.4543596,88050.0,88015.0,2.38624]
[1766152110395,0.2271798,88040.0,88022.0,0.011367]
[1766152110588,0.00572,88039.0,88017.0,0.00072]
[1766152110784,0.0113651,88037.0,88017.0,0.00072]
[1766152110991,0.0113654,88035.0,88017.0,0.00072]
[1766152111189,9.835e-05,88034.0,88017.0,0.00072]
[1766152111400,0.0113656,88033.0,88017.0,0.00072]
[1766152112807,9.835e-05,88034.0,88017.0,0.0120876]
[1766152113403,9.835e-05,88034.0,88017.0,0.00072]
[1766152114200,9.835e-05,88034.0,88017.0,0.0120876]
[1766152114401,9.835e-05,88034.0,88019.0,0.0113673]
[1766152115196,9.835e-05,88034.0,88024.0,0.0113666]
[1766152115398,9.835e-05,88034.0,88021.0,0.0113671]
[1766152116595,9.835e-05,88034.0,88022.0,0.0113669]
[1766152116996,9.835e-05,88034.0,88024.0,0.0113667]
[1766152117501,9.835e-05,88034.0,88017.0,0.00072]
[1766152117502,9.835e-05,88034.0,88026.0,0.0113664]
[1766152118707,0.00017033,88036.0,88026.0,0.0113664]
[1766152119007,0.00017033,88036.0,88028.0,0.0113661]
[1766152120108,0.0113625,88058.0,88029.0,0.00572]
[1766152120407,0.0113625,88058.0,88020.0,0.29561357]
[1766152120408,0.00572,88057.0,88038.0,0.0113649]
[1766152120610,0.00572,88057.0,88023.0,0.0113668]
[1766152120611,0.0170827,88056.0,88035.0,0.0113653]
[1766152121004,0.0170827,88056.0,88037.0,0.011365]
[1766152121209,0.00017033,88054.0,88037.0,0.01153533]
[1766152122908,0.00017033,88054.0,88037.0,0.00017033]
[1766152123698,0.00017033,88054.0,88040.0,0.0113646]
[1766152124804,0.0113613,88067.0,88047.0,0.0113637]
[1766152125109,0.0113615,88065.0,88044.0,0.0170841]
[1766152125310,0.0113618,88063.0,88046.0,0.0113639]
[1766152125509,0.0113622,88059.0,88044.0,0.00572]
[1766152127404,0.00017033,88060.0,88044.0,0.00572]
[1766152127613,0.00017033,88060.0,88047.0,0.0113636]
[1766152127797,3e-08,88060.0,88044.0,0.00572]
[1766152127997,0.0113593,88082.0,88050.0,0.28424637]
[1766152128207,0.0113589,88085.0,88063.0,0.0113617]
[1766152128403,0.00056,88087.0,88064.0,0.00572]
[1766152129003,0.00017033,88084.0,88067.0,0.01153143]
[1766152129710,0.01152943,88084.0,88067.0,0.00017033]
[1766152135013,0.00017033,88084.0,88069.0,0.0113608]
[1766152135510,0.00017033,88084.0,88067.0,0.00017033]
[1766152135511,0.01152943,88084.0,88067.0,0.00017033]
[1766152135810,0.00017033,88084.0,88067.0,0.00017033]
[1766152136402,0.00017033,88084.0,88031.0,0.0113657]
[1766152136611,0.0113608,88071.0,88054.0,0.0113628]
[1766152137011,0.0113608,88071.0,88055.0,0.00564]
[1766152137714,0.0113608,88071.0,88055.0,0.0170027]
[1766152138010,0.00017033,88072.0,88055.0,0.00564]
[1766152138208,0.01153093,88072.0,88055.0,0.00564]
[1766152138606,0.01153093,88072.0,88056.0,0.0113626]
[1766152139003,0.011362,88061.0,88054.0,3.3e-07]
[1766152139201,0.0113618,88062.0,88054.0,3.3e-07]
[1766152139608,0.00572,88068.0,88054.0,3.3e-07]
[1766152140413,0.0113613,88066.0,88054.0,3.3e-07]
[1766152140611,0.00572,88068.0,88054.0,3.3e-07]
[1766152140799,0.00572,88068.0,88054.0,0.01136303]
[1766152141001,0.00017033,88072.0,88055.0,0.00572]
[1766152141215,0.00227021,88098.0,88055.0,0.00572]
[1766152141216,0.0113587,88087.0,88065.0,0.0113614]
[1766152141410,0.0113583,88090.0,88065.0,0.0036]
[1766152141619,0.0113583,88090.0,88071.0,0.0113606]
[1766152141808,0.0113587,88087.0,88065.0,0.0149614]
[1766152142112,0.0113589,88085.0,88067.0,0.0113611]
[1766152142319,0.0113592,88083.0,88067.0,0.00017033]
[1766152142512,0.0113595,88081.0,88067.0,0.00017033]
[1766152142911,0.00017033,88085.0,88067.0,0.00017033]
[1766152143107,0.00017033,88085.0,88076.0,0.01136]
[1766152143613,3.3e-07,88085.0,88076.0,0.01136]
[1766152144205,3.3e-07,88085.0,88073.0,0.0113604]
[1766152144609,3.3e-07,88085.0,88067.0,0.00017033]
[1766152144610,3.3e-07,88085.0,88070.0,0.0113607]
[1766152145516,3.3e-07,88085.0,88072.0,0.0113605]
[1766152146306,3.3e-07,88085.0,88067.0,0.00017033]
[1766152146613,3.3e-07,88085.0,88068.0,0.011361]
[1766152147118,3.3e-07,88085.0,88079.0,0.0113595]
[1766152147317,3.3e-07,88085.0,88082.0,0.0113592]
[1766152149428,1e-08,88098.0,88084.0,0.0113589]
[1766152149617,1e-08,88098.0,88093.0,0.0113578]
[1766152150520,1e-08,88098.0,88091.0,0.00572]
[1766152150817,1e-08,88098.0,88092.0,0.011358]
[1766152152516,1e-08,88098.0,88091.0,0.00572]
[1766152154412,1e-08,88098.0,88091.0,0.017078]
[1766152154813,1e-08,88098.0,88091.0,0.00572]
[1766152156317,1e-08,88098.0,88091.0,0.017078]
[1766152157216,1e-08,88098.0,88091.0,0.00572]
[1766152161521,1e-08,88098.0,88087.0,0.00017033]
[1766152161717,1e-08,88098.0,88069.0,0.0113609]
[1766152161718,0.0113578,88094.0,88069.0,0.0113609]
[1766152162027,0.0113578,88094.0,88070.0,0.00572]
[1766152162423,0.0113578,88094.0,88071.0,0.0113607]
[1766152162626,0.0113583,88090.0,88074.0,0.00017033]
[1766152162816,0.0113583,88090.0,88074.0,0.00589033]
[1766152163327,1e-08,88098.0,88075.0,0.0113601]
[1766152163627,0.00548001,88098.0,88075.0,0.0113601]
[1766152164430,0.00548001,88098.0,88074.0,0.00589033]
[1766152165338,0.02536648,88097.0,88074.0,0.00589033]
[1766152165534,0.0113574,88097.0,88074.0,0.00589033]
[1766152165831,0.011358,88092.0,88074.0,0.00589033]
[1766152166634,0.00548001,88098.0,88074.0,0.00589033]
[1766152166836,0.0113586,88088.0,88074.0,0.00589033]
[1766152168734,0.0113589,88085.0,88074.0,0.00589033]
[1766152169928,0.0113593,88082.0,88074.0,0.00017033]
[1766152170134,0.00548001,88098.0,88020.0,0.00099999]
[1766152170135,0.0113597,88079.0,88065.0,0.00572]
[1766152170346,0.0113597,88079.0,88063.0,0.00572]
[1766152173432,0.00017033,88080.0,88063.0,0.00572]
[1766152173733,0.0113604,88074.0,88062.0,0.00017033]
[1766152176541,0.00017033,88080.0,88062.0,0.00017033]
[1766152178344,0.0113601,88076.0,88062.0,0.00017033]
[1766152178832,0.0113597,88079.0,88062.0,0.00017033]
[1766152179342,0.0113597,88079.0,88062.0,0.01153213]
[1766152179542,0.01152983,88080.0,88062.0,0.01153213]
[1766152183243,0.0113598,88078.0,88062.0,0.01153213]
[1766152183442,0.0113598,88078.0,88062.0,0.00017033]
[1766152184341,0.00017033,88080.0,88062.0,0.00017033]
[1766152184542,0.0113605,88073.0,88062.0,0.00017033]
[1766152185248,0.0113603,88074.0,88062.0,0.00017033]
[1766152186340,0.0113605,88072.0,88062.0,0.00017033]
[1766152186952,0.0113603,88075.0,88062.0,0.00017033]
[1766152188548,0.00017033,88080.0,88062.0,0.00017033]
[1766152188846,0.0113602,88075.0,88062.0,0.00017033]
[1766152189048,0.0113604,88073.0,88062.0,0.00017033]
[1766152189256,0.0113608,88070.0,88062.0,3.3e-07]
[1766152191152,0.0113607,88071.0,88062.0,3.3e-07]
[1766152191555,0.0113604,88074.0,88062.0,3.3e-07]
[1766152193146,0.00572,88075.0,88062.0,3.3e-07]
[1766152194445,0.0113603,88074.0,88062.0,3.3e-07]
[1766152195152,0.00572,88075.0,88062.0,3.3e-07]
[1766152195366,0.00572,88075.0,88062.0,0.01136213]
[1766152197256,0.00572,88075.0,88062.0,0.01136203]
[1766152197754,0.00572,88075.0,88064.0,0.0113615]
[1766152198763,0.00572,88075.0,88066.0,0.0113613]
[1766152199147,0.02544363,88074.0,88066.0,0.0113613]
[1766152199349,0.02544363,88073.0,88065.0,0.0113614]
[1766152199540,0.00572,88075.0,88062.0,0.01136203]
[1766152199854,0.0254519,88074.0,88062.0,0.01136203]
[1766152200049,0.0254519,88073.0,88062.0,0.01136203]
[1766152200251,0.0254519,88072.0,88062.0,3.3e-07]
[1766152200452,0.00572,88075.0,88062.0,3.3e-07]
[1766152200649,0.02545389,88074.0,88062.0,3.3e-07]
[1766152200954,0.00572,88075.0,88062.0,3.3e-07]
[1766152200955,0.02545389,88073.0,88062.0,3.3e-07]
[1766152201158,0.03681449,88072.0,88062.0,3.3e-07]
[1766152201351,0.0170803,88075.0,88062.0,3.3e-07]
[1766152201659,0.02545606,88074.0,88062.0,3.3e-07]
[1766152201862,0.02545606,88073.0,88062.0,3.3e-07]
[1766152202043,0.02545606,88072.0,88062.0,3.3e-07]
[1766152202244,0.00572,88075.0,88064.0,0.0113615]
[1766152202449,0.02545803,88074.0,88064.0,0.0113615]
[1766152202650,0.02545803,88073.0,88064.0,0.0113615]
[1766152202960,0.00572,88075.0,88062.0,3.3e-07]
[1766152203256,0.02545803,88074.0,88062.0,3.3e-07]
[1766152203459,0.02545803,88073.0,88062.0,3.3e-07]
[1766152203758,0.00572,88075.0,88062.0,3.3e-07]
[1766152203959,0.02546102,88074.0,88062.0,3.3e-07]
[1766152204159,0.02546102,88073.0,88062.0,3.3e-07]
[1766152204363,0.00572,88075.0,88062.0,3.3e-07]
[1766152204553,0.02546133,88074.0,88062.0,3.3e-07]
[1766152204859,0.02546133,88073.0,88062.0,0.01136213]
[1766152205159,0.00572,88075.0,88062.0,0.01136213]
[1766152205360,0.02546148,88074.0,88062.0,0.01136213]
[1766152205656,0.02546148,88073.0,88069.0,0.0113609]
[1766152205863,3.3e-07,88080.0,88076.0,0.01136]
[1766152206261,3.3e-07,88080.0,88078.0,0.0113597]
[1766152207658,3.3e-07,88080.0,88077.0,0.0113599]
[1766152207863,0.0113567,88103.0,88076.0,0.01708]
[1766152208058,0.0036,88101.0,88080.0,0.22718609]
[1766152208365,0.0149569,88101.0,88080.0,0.22718609]
[1766152208554,0.22718609,88100.0,88080.0,0.22718609]
[1766152208756,0.22718609,88100.0,88076.0,0.00572]
[1766152208960,0.00017034,88098.0,88083.0,0.0113591]
[1766152209159,0.00017034,88098.0,88084.0,0.00572]
[1766152209957,0.00017034,88098.0,88080.0,0.00017033]
[1766152209958,0.23854389,88094.0,88080.0,0.00017033]
[1766152210159,0.22718609,88090.0,88081.0,0.00572]
[1766152210861,0.23854439,88090.0,88070.0,0.0113607]
[1766152211062,0.23854439,88090.0,88075.0,0.00572]
[1766152211659,0.22718609,88090.0,88077.0,0.0113598]
[1766152211855,0.0170779,88093.0,88077.0,0.0113598]
[1766152212061,0.22718609,88090.0,88079.0,0.0113596]
[1766152212366,0.00572,88093.0,88079.0,0.0113596]
[1766152212555,0.00572,88093.0,88076.0,0.0113599]
[1766152212756,0.00572,88093.0,88078.0,0.0113597]
[1766152213566,0.22718609,88090.0,88078.0,0.0113597]
[1766152213967,0.00572,88093.0,88079.0,0.0113595]
[1766152214267,0.00572,88093.0,88075.0,0.00572]
[1766152214452,0.22718609,88090.0,88075.0,0.0170801]
[1766152214650,0.0113584,88089.0,88075.0,0.00572]
[1766152215062,0.22718609,88090.0,88075.0,0.00572]
[1766152215367,0.0113587,88087.0,88075.0,0.00572]
[1766152215568,0.0170787,88087.0,88075.0,0.00572]
[1766152216765,0.0113589,88085.0,88074.0,0.00572]
[1766152216965,0.00572,88087.0,88074.0,0.00572]
[1766152219975,0.00572,88087.0,88075.0,0.0113601]
[1766152220369,0.00572,88087.0,88074.0,0.00572]
[1766152221075,0.00572,88087.0,88074.0,0.0170803]
[1766152221875,0.00572,88087.0,88076.0,0.01136]
[1766152223374,0.00572,88087.0,88074.0,0.0170802]
[1766152223869,0.00572,88087.0,88074.0,0.0113602]
[1766152224377,0.00572,88087.0,88073.0,0.00572]
[1766152227175,0.0113588,88086.0,88073.0,0.00572]
[1766152228968,0.00572,88087.0,88076.0,0.0113599]
[1766152231381,0.00572,88087.0,88073.0,0.0170803]
[1766152231574,0.00572,88087.0,88073.0,0.00572]
[1766152232578,0.00572,88087.0,88076.0,0.0113599]
[1766152233181,0.00572,88087.0,88073.0,0.0170803]
[1766152233386,0.00572,88087.0,88074.0,0.00572]
[1766152234978,0.011359,88085.0,88073.0,0.00572]
[1766152235779,0.22710346,88083.0,88060.0,0.22710346]
[1766152235978,0.22727379,88080.0,88062.0,2.38616]
[1766152236372,0.00017033,88080.0,88062.0,2.38616]
[1766152236881,0.00017033,88080.0,88067.0,0.0113612]
[1766152237076,0.00017033,88080.0,88068.0,0.00572]
[1766152241887,0.00017033,88080.0,88067.0,0.0113612]
[1766152242086,0.0113601,88076.0,88061.0,0.0113619]
[1766152242281,0.0113601,88076.0,88062.0,0.0170018]
[1766152242778,0.0113598,88079.0,88062.0,0.0170018]
[1766152243083,0.0113599,88077.0,88062.0,0.0170018]
[1766152243285,0.02527631,88076.0,88062.0,0.0170018]
[1766152243481,0.0113599,88077.0,88062.0,0.0170018]
[1766152243679,0.0252734,88076.0,88064.0,0.0113616]
[1766152243989,0.23863339,88080.0,88064.0,0.0113616]
[1766152244188,3.4e-06,88079.0,88062.0,0.00564]
[1766152244492,0.0113574,88097.0,88080.0,0.0113594]
[1766152244685,0.00572,88096.0,88082.0,0.0113592]
[1766152249480,0.00572,88096.0,88084.0,0.011359]
[1766152249887,0.00572,88096.0,88084.0,0.00572]
[1766152252389,0.00572,88096.0,88084.0,0.0170789]
[1766152258300,0.00572,88096.0,88084.0,0.00572]
[1766152260000,0.00572,88096.0,88085.0,0.0113589]
[1766152261089,0.00572,88096.0,88087.0,0.0113586]
[1766152261291,0.00572,88096.0,88084.0,0.0170789]
[1766152261599,0.00572,88096.0,88086.0,0.0113587]
[1766152261800,0.00572,88096.0,88084.0,0.00572]
[1766152261996,0.0170775,88096.0,88084.0,0.00572]
[1766152262201,0.00572,88096.0,88085.0,0.0113589]
[1766152263004,0.00572,88096.0,88084.0,0.00572]
[1766152263992,0.00572,88096.0,88084.0,0.017079]
[1766152265895,0.00572,88096.0,88084.0,0.00572]
[1766152266093,0.0170775,88096.0,88084.0,0.00572]
[1766152266295,0.00572,88096.0,88084.0,0.00572]
[1766152267194,0.00572,88096.0,88081.0,0.0113593]
[1766152267396,0.00572,88096.0,88064.0,0.0154]
[1766152267397,0.22704687,88091.0,88064.0,2.40144]
[1766152267593,0.0113586,88087.0,88073.0,0.0113604]
[1766152267787,0.0113589,88085.0,88070.0,0.0113607]
[1766152268593,0.0113592,88083.0,88067.0,0.0113611]
[1766152269201,0.0113592,88083.0,88069.0,0.0113609]
[1766152269502,0.00017034,88098.0,88070.0,0.22704687]
[1766152269709,0.02507518,88097.0,88085.0,0.0113588]
[1766152269897,0.02507518,88096.0,88082.0,0.0170792]
[1766152270204,0.0113573,88097.0,88082.0,0.00572]
[1766152270414,0.02507803,88096.0,88082.0,0.00572]
[1766152270600,0.0113576,88095.0,88082.0,0.00572]
[1766152271602,0.01152764,88098.0,88082.0,0.00572]
[1766152271906,0.0250812,88097.0,88082.0,0.00572]
[1766152272202,0.0113575,88096.0,88082.0,0.00572]
[1766152272505,0.0113585,88088.0,88082.0,0.00572]
[1766152273204,0.00017034,88098.0,88074.0,0.0113602]
[1766152273400,0.02509553,88097.0,88075.0,0.0036]
[1766152273601,0.00017034,88098.0,88075.0,0.0036]
[1766152273804,0.02509542,88097.0,88075.0,0.0036]
[1766152274002,0.02509542,88096.0,88075.0,0.0036]
[1766152274306,0.011358,88092.0,88075.0,0.0036]
[1766152275097,0.00572,88093.0,88075.0,0.0036]
[1766152275298,0.00572,88093.0,88076.0,0.01136]
[1766152275299,0.011358,88092.0,88076.0,0.01136]
[1766152276096,0.10146349,88092.0,88076.0,0.01136]
[1766152276299,0.00589033,88093.0,88078.0,0.0113597]
[1766152276808,0.00589033,88093.0,88080.0,0.0113595]
[1766152277108,0.00589033,88093.0,88082.0,0.0113592]
[1766152277297,0.00589033,88093.0,88075.0,0.00377033]
[1766152278211,0.00589033,88093.0,88082.0,0.0113592]
[1766152278605,0.00589033,88093.0,88079.0,0.0113596]
[1766152278801,0.09766643,88093.0,88079.0,0.0113596]
[1766152279002,0.00589033,88093.0,88079.0,0.0113596]
[1766152279204,0.00589033,88093.0,88081.0,0.0113593]
[1766152279409,0.00589033,88093.0,88075.0,0.00377033]
[1766152280010,0.00589033,88093.0,88083.0,0.0113591]
[1766152280305,0.00589033,88093.0,88075.0,0.00377033]
[1766152280509,0.00017033,88093.0,88080.0,0.0113595]
[1766152281007,0.09204627,88093.0,88084.0,0.011359]
[1766152281310,0.00408,88095.0,88084.0,0.011359]
[1766152282206,0.00408,88095.0,88075.0,0.00377033]
[1766152282402,0.09318327,88095.0,88075.0,0.00377033]
[1766152282611,0.00408,88095.0,88075.0,0.00377033]
[1766152283209,0.00017033,88098.0,88075.0,0.00377033]
[1766152283606,0.00017033,88098.0,88080.0,0.22704687]
[1766152284309,0.00017033,88098.0,88077.0,0.0113599]
[1766152285315,0.00017033,88098.0,88087.0,0.0113585]
[1766152285514,0.00017033,88098.0,88087.0,0.0170785]
[1766152286316,0.00017033,88098.0,88089.0,0.0113583]
[1766152286613,0.00017033,88098.0,88093.0,0.0113578]
[1766152286815,0.00017033,88098.0,88087.0,0.00572]
[1766152286816,0.0113552,88114.0,88099.0,0.0113569]
[1766152287010,0.0113552,88114.0,88096.0,0.0170774]
[1766152287517,0.0113557,88110.0,88096.0,0.00572]
[1766152287703,0.00017033,88112.0,88096.0,0.00572]
[1766152288215,0.0113561,88107.0,88096.0,0.00572]
[1766152288823,0.00017033,88112.0,88096.0,0.00572]
[1766152288824,0.0113557,88110.0,88096.0,0.00572]
[1766152290530,0.00017033,88112.0,88094.0,0.00017033]
[1766152290721,0.0113559,88108.0,88095.0,0.00444]
[1766152292724,0.0113562,88106.0,88095.0,0.00444]